fUSD/lending_fUSD_20260519
["ID","MTS","AMOUNT","RATE_DAILY","PERIOD"]
[422640820,1779199589000,500.0,0.00030136,120]
[422640821,1779199593000,1077.72,0.00030136,120]
[422640822,1779199595000,965.55,0.00030136,120]
[422640823,1779199597000,255.74460628,0.00030136,120]
[422640825,1779199600000,500.0,0.00030136,120]
[422640824,1779199600000,500.0,0.00030136,120]
[422640826,1779199604000,376.44227948,0.00030136,120]
[422640827,1779199607000,4414.45,0.00030136,120]
[422640828,1779199609000,165.80789194,0.00030136,120]
[422640829,1779199614000,171.0886287,0.00030136,120]
[422640830,1779199618000,154.77726246,0.00030136,120]
[422640831,1779199619000,500.0,0.00030136,120]
[422640833,1779199625000,554.31512006,0.00030136,120]
[422640834,1779199625000,500.0,0.00030136,120]
[422640832,1779199625000,769.1,0.00030136,120]
[422640835,1779199638000,500.0,0.00030136,120]
[422640837,1779199641000,1929.2,0.00030136,120]
[422640836,1779199641000,500.0,0.00030136,120]
[422640839,1779199647000,575.2440214,0.00030136,120]
[422640838,1779199647000,507.61315076,0.00030136,120]
[422640840,1779199648000,500.0,0.00030136,120]
[422640841,1779199651000,500.0,0.00030136,120]
[422640842,1779199653000,500.0,0.00030136,120]
[422640843,1779199659000,500.0,0.00030136,120]
[422640844,1779199661000,500.0,0.00030136,120]
[422640845,1779199663000,500.0,0.00030136,120]
[422640846,1779199667000,169.7933377,0.00030136,120]
[422640848,1779199669000,540.26177965,0.00030136,120]
[422640847,1779199669000,500.0,0.00030136,120]
[422640849,1779199672000,500.0,0.00030136,120]
[422640850,1779199673000,237.48805544,0.00030136,120]
[422640851,1779199676000,500.0,0.00030136,120]
[422640853,1779199683000,500.0,0.00030136,120]
[422640852,1779199683000,1202.4,0.00030136,120]
[422640854,1779199688000,4060.53,0.00030136,120]
[422640855,1779199692000,1304.99,0.00030136,120]
[422640856,1779199693000,169.72421881,0.00030136,120]
[422640857,1779199694000,159.21588233,0.00030136,120]
[422640858,1779199695000,305.57982058,0.00030136,120]
[422640860,1779199702000,500.0,0.00030136,120]
[422640859,1779199702000,500.0,0.00030136,120]
[422640861,1779199711000,3502.97,0.00030136,120]
[422640864,1779199712000,184.09111959,0.00030136,120]
[422640863,1779199712000,491.05329693,0.00030136,120]
[422640862,1779199712000,500.0,0.00030136,120]
[422640865,1779199715000,500.0,0.00030136,120]
[422640866,1779199719000,1876.2,0.00030136,120]
[422640867,1779199732000,3123.82,0.00030136,120]
[422640868,1779199732000,173.88287826,0.00030136,120]
[422640869,1779199736000,1111.91,0.00030136,120]
[422640870,1779199740000,500.0,0.00030136,120]
[422640871,1779199741000,1000.0,0.00030136,120]
[422640872,1779199744000,160.4136183,0.00030136,120]
[422640873,1779199746000,500.0,0.00030136,120]
[422640874,1779199748000,500.0,0.00030136,120]
[422640875,1779199751000,164.81529244,0.00030136,120]
[422640876,1779199758000,2207.97,0.00030136,120]
[422640877,1779199759000,181.94062526,0.00030136,120]
[422640878,1779199759000,163.22073371,0.00030136,120]
[422640879,1779199762000,7888.25,0.00030136,120]
[422640880,1779199766000,500.0,0.00030136,120]
[422640881,1779199770000,155.46870221,0.00030136,120]
[422640883,1779199772000,500.0,0.00030136,120]
[422640882,1779199772000,-160.0,0.00010002,2]
[422640884,1779199775000,1386.58,0.00030136,120]
[422640885,1779199777000,163.35337216,0.00030136,120]
[422640886,1779199778000,154.66900121,0.00030136,120]
[422640887,1779199781000,173.00856198,0.00030136,120]
[422640888,1779199784000,154.1014062,0.00030136,120]
[422640889,1779199790000,521.92,0.00030136,120]
[422640890,1779199792000,176.66965469,0.00030136,120]
[422640891,1779199799000,466.77960255,0.00030136,120]
[422640892,1779199802000,164.61349522,0.00030136,120]
[422640895,1779199803000,500.0,0.00030136,120]
[422640894,1779199803000,265.75811814,0.00030136,120]
[422640893,1779199803000,495.27988382,0.00030136,120]
[422640896,1779199815000,639.69,0.00030136,120]
[422640897,1779199819000,830.19,0.00030136,120]
[422640898,1779199820000,2388.89,0.00030136,120]
[422640899,1779199821000,1262.45,0.00030136,120]
[422640900,1779199822000,170.65485968,0.00030136,120]
[422640901,1779199823000,153.04606328,0.00030136,120]
[422640902,1779199824000,2473.02,0.00030136,120]
[422640937,1779199832000,-4474.87623486,0.00013685,2]
[422640936,1779199832000,-200.0,0.00013613,2]
[422640938,1779199832000,-200.0,0.00013699,2]
[422640945,1779199832000,-150.0,0.00014237,2]
[422640946,1779199832000,-917.65,0.00014248,2]
[422640943,1779199832000,-55219.86112246,0.000142,2]
[422640939,1779199832000,-172.02,0.00013744,2]
[422640941,1779199832000,-1012.12,0.00013829,2]
[422640944,1779199832000,-11543.07277754,0.000142,2]
[422640940,1779199832000,-1000.0,0.00013825,2]
[422640951,1779199832000,-52776.14347015,0.00014397,2]
[422640947,1779199832000,-150.0,0.00014248,2]
[422640948,1779199832000,-5000.0,0.000143,2]
[422640957,1779199832000,-1849.13914041,0.0001446,2]
[422640959,1779199832000,-4625.3,0.00014474,2]
[422640963,1779199832000,-156.165,0.00014496,2]
[422640949,1779199832000,-2946.81252985,0.00014397,2]
[422640934,1779199832000,-150.0,0.00013488,2]
[422640962,1779199832000,-820.715,0.00014496,2]
[422640953,1779199832000,-1849.13914049,0.00014405,2]
[422640955,1779199832000,-1680.0,0.0001441,2]
[422640942,1779199832000,-917.65,0.00013909,2]
[422640935,1779199832000,-917.65,0.00013569,2]
[422640928,1779199832000,-150.0,0.00013488,2]
[422640933,1779199832000,-150.0,0.00013488,2]
[422640965,1779199832000,-80870.78,0.00014497,2]
[422640912,1779199832000,-303.72702952,0.0001235,2]
[422640913,1779199832000,-116.27297048,0.0001235,2]
[422640911,1779199832000,183.52614592,0.00030136,120]
[422640922,1779199832000,-300.0,0.00013101,2]
[422640923,1779199832000,-300.0,0.00013101,2]
[422640924,1779199832000,-480.0,0.00013101,2]
[422640921,1779199832000,-1200.0,0.000131,2]
[422640915,1779199832000,-152.0,0.00012647,2]
[422640919,1779199832000,-2418.66154549,0.00013069,2]
[422640916,1779199832000,-213.94691902,0.00012969,2]
[422640917,1779199832000,-150.0,0.00013046,2]
[422640914,1779199832000,-150.0,0.00012523,2]
[422640920,1779199832000,-1194.67,0.00013069,2]
[422640918,1779199832000,-1683.51,0.00013059,2]
[422640927,1779199832000,-7774.39,0.00013254,2]
[422640925,1779199832000,-19611.25,0.00013102,2]
[422640931,1779199832000,-150.0,0.00013488,2]
[422640929,1779199832000,-150.0,0.00013488,2]
[422640930,1779199832000,-150.0,0.00013488,2]
[422640926,1779199832000,-160.0,0.00013248,2]
[422640932,1779199832000,-150.0,0.00013488,2]
[422640967,1779199832000,-500.0,0.00014504,2]
[422641045,1779199832000,-500.0,0.00014504,2]
[422640976,1779199832000,-500.0,0.00014504,2]
[422641032,1779199832000,-500.0,0.00014504,2]
[422641034,1779199832000,-500.0,0.00014504,2]
[422640970,1779199832000,-500.0,0.00014504,2]
[422641030,1779199832000,-500.0,0.00014504,2]
[422641036,1779199832000,-500.0,0.00014504,2]
[422641028,1779199832000,-500.0,0.00014504,2]
[422641039,1779199832000,-500.0,0.00014504,2]
[422641040,1779199832000,-500.0,0.00014504,2]
[422641043,1779199832000,-500.0,0.00014504,2]
[422641049,1779199832000,-500.0,0.00014504,2]
[422641050,1779199832000,-500.0,0.00014504,2]
[422641047,1779199832000,-500.0,0.00014504,2]
[422641057,1779199832000,-500.0,0.00014504,2]
[422641059,1779199832000,-500.0,0.00014504,2]
[422641052,1779199832000,-500.0,0.00014504,2]
[422641055,1779199832000,-500.0,0.00014504,2]
[422641060,1779199832000,-500.0,0.00014504,2]
[422641063,1779199832000,-500.0,0.00014504,2]
[422641064,1779199832000,-500.0,0.00014504,2]
[422641066,1779199832000,-500.0,0.00014504,2]
[422641068,1779199832000,-500.0,0.00014504,2]
[422641024,1779199832000,-500.0,0.00014504,2]
[422641022,1779199832000,-500.0,0.00014504,2]
[422641026,1779199832000,-500.0,0.00014504,2]
[422641018,1779199832000,-500.0,0.00014504,2]
[422640978,1779199832000,-500.0,0.00014504,2]
[422640980,1779199832000,-643.22044606,0.00014504,2]
[422640982,1779199832000,-500.0,0.00014504,2]
[422640971,1779199832000,-500.0,0.00014504,2]
[422640974,1779199832000,-500.0,0.00014504,2]
[422640984,1779199832000,-500.0,0.00014504,2]
[422640986,1779199832000,-500.0,0.00014504,2]
[422641020,1779199832000,-500.0,0.00014504,2]
[422640989,1779199832000,-500.0,0.00014504,2]
[422640988,1779199832000,-500.0,0.00014504,2]
[422640993,1779199832000,-500.0,0.00014504,2]
[422640991,1779199832000,-500.0,0.00014504,2]
[422641001,1779199832000,-500.0,0.00014504,2]
[422640995,1779199832000,-500.0,0.00014504,2]
[422640997,1779199832000,-500.0,0.00014504,2]
[422641006,1779199832000,-500.0,0.00014504,2]
[422641003,1779199832000,-500.0,0.00014504,2]
[422640999,1779199832000,-500.0,0.00014504,2]
[422641008,1779199832000,-500.0,0.00014504,2]
[422641014,1779199832000,-607.24896766,0.00014504,2]
[422641012,1779199832000,-500.0,0.00014504,2]
[422641010,1779199832000,-500.0,0.00014504,2]
[422641016,1779199832000,-500.0,0.00014504,2]
[422641081,1779199833000,-984.1225154,0.00014505,2]
[422641078,1779199833000,-500.0,0.00014504,2]
[422641077,1779199833000,-500.0,0.00014504,2]
[422641072,1779199833000,-500.0,0.00014504,2]
[422641076,1779199833000,-300.0,0.00014504,2]
[422641082,1779199833000,-833.5866319,0.00014505,2]
[422641080,1779199833000,-9943.8772762,0.00014505,2]
[422641070,1779199833000,-500.0,0.00014504,2]
[422641079,1779199833000,-8598.5270737,0.00014505,2]
[422641074,1779199833000,-500.0,0.00014504,2]
[422641088,1779199833000,-894.17975368,0.00014505,2]
[422641090,1779199833000,-1081.52417762,0.00014505,2]
[422641089,1779199833000,-1248.86929294,0.00014505,2]
[422641086,1779199833000,-2287.51677326,0.00014505,2]
[422641084,1779199833000,-95760.42539475,0.00014505,2]
[422641091,1779199833000,-250.0,0.00014505,2]
[422641085,1779199833000,-1254.41808677,0.00014505,2]
[422641083,1779199833000,-3227.5879606,0.00014505,2]
[422641093,1779199833000,-458.43688841,0.00014505,2]
[422641092,1779199833000,-8644.86836957,0.00014505,2]
[422641094,1779199833000,-1981.08146221,0.00014505,2]
[422641087,1779199833000,-1403.8382809,0.00014505,2]
[422641095,1779199834000,1032.82,0.00030136,120]
[422641096,1779199835000,500.0,0.00030136,120]
[422641102,1779199838000,-6248.96570092,0.00014505,2]
[422641101,1779199838000,-312.50730124,0.00014505,2]
[422641103,1779199838000,-3920.61009952,0.00014505,2]
[422641123,1779199840000,-1074.12013759,0.00014581,2]
[422641115,1779199840000,-14744.36127053,0.00014505,2]
[422641116,1779199840000,-937.55883453,0.00014505,2]
[422641117,1779199840000,-1198.20846186,0.00014505,2]
[422641118,1779199840000,-4149.0971394,0.00014505,2]
[422641119,1779199840000,-3781.30324089,0.00014505,2]
[422641122,1779199840000,-727.41152171,0.0001457,2]
[422641121,1779199840000,-1121.7276187,0.0001457,2]
[422641120,1779199840000,-1849.13914041,0.00014515,2]
[422641124,1779199840000,-1425.87986241,0.00014581,2]
[422641128,1779199840000,-500.0,0.0001468,2]
[422641136,1779199840000,-185.33574336,0.0001468,2]
[422641125,1779199840000,-917.65,0.00014587,2]
[422641132,1779199840000,-265.71650374,0.0001468,2]
[422641138,1779199840000,-150.0,0.0001468,2]
[422641134,1779199840000,-99.9441351,0.0001468,2]
[422641131,1779199840000,-150.36139749,0.0001468,2]
[422641127,1779199840000,-1000.0,0.00014679,2]
[422641129,1779199840000,-500.0,0.0001468,2]
[422641126,1779199840000,-1849.13914041,0.00014625,2]
[422641130,1779199840000,-1849.13914041,0.0001468,2]
[422641133,1779199840000,-50.43071717,0.0001468,2]
[422641190,1779199841000,-406.35865893,0.00014828,2]
[422641185,1779199841000,-406.35865893,0.00014791,2]
[422641188,1779199841000,-415.0,0.00014801,2]
[422641196,1779199841000,-25000.0,0.00014838,3]
[422641191,1779199841000,-1175.14465853,0.00014829,2]
[422641187,1779199841000,-417.0,0.00014794,2]
[422641199,1779199841000,-1849.13914041,0.00014845,2]
[422641189,1779199841000,-417.0,0.00014813,2]
[422641207,1779199841000,-406.35865893,0.00014864,2]
[422641201,1779199841000,-480.0,0.00014846,2]
[422641213,1779199841000,-407.0,0.0001487,2]
[422641211,1779199841000,-25000.0,0.00014865,3]
[422641203,1779199841000,-25000.0,0.00014847,3]
[422641209,1779199841000,-1175.14465853,0.00014865,2]
[422641217,1779199841000,-25000.0,0.00014874,3]
[422641215,1779199841000,-207.73089696,0.00014872,2]
[422641193,1779199841000,-168.44,0.0001483,2]
[422641192,1779199841000,-25000.0,0.0001483,3]
[422641145,1779199841000,-406.10165363,0.00014681,2]
[422641184,1779199841000,-1849.13914041,0.0001479,2]
[422641143,1779199841000,-406.35865896,0.00014681,2]
[422641219,1779199841000,-407.0,0.00014882,2]
[422641141,1779199841000,-150.0,0.0001468,2]
[422641163,1779199841000,-124.10754637,0.00014681,2]
[422641165,1779199841000,-10379.59517967,0.00014681,2]
[422641182,1779199841000,-4110.9898842,0.00014781,2]
[422641181,1779199841000,-22159.6113004,0.00014781,2]
[422641172,1779199841000,-222836.01592033,0.00014681,2]
[422641174,1779199841000,-406.35865893,0.00014718,2]
[422641173,1779199841000,-1683.51,0.00014691,2]
[422641177,1779199841000,-417.0,0.00014741,2]
[422641175,1779199841000,-1175.14465853,0.00014723,2]
[422641176,1779199841000,-1849.13914041,0.00014735,2]
[422641179,1779199841000,-1175.14465853,0.00014758,2]
[422641178,1779199841000,-406.35865893,0.00014754,2]
[422641180,1779199841000,-407.0,0.00014773,2]
[422641183,1779199841000,-200.0,0.00014781,2]
[422641186,1779199841000,-1175.14465853,0.00014794,2]
[422641204,1779199841000,-25000.0,0.00014856,3]
[422641195,1779199841000,-329.96243249,0.00014832,2]
[422641223,1779199841000,-407.0,0.00014887,2]
[422641266,1779199841000,-151.0,0.00014997,2]
[422641267,1779199841000,-417.0,0.00014997,2]
[422641269,1779199841000,-1060.86477171,0.00014999,5]
[422641275,1779199841000,-378.36,0.00015,2]
[422641277,1779199841000,-7975381.18899204,0.00015,2]
[422641268,1779199841000,-1060.86477171,0.00014999,5]
[422641270,1779199841000,-692.46000937,0.00014999,2]
[422641273,1779199841000,-3375631.06989673,0.00015,2]
[422641274,1779199841000,-381.55,0.00015,2]
[422641271,1779199841000,-300.0,0.00014999,2]
[422641272,1779199841000,-300.0,0.00014999,2]
[422641278,1779199841000,-79999.99999997,0.00015,2]
[422641280,1779199841000,-1381.56113524,0.00015,2]
[422641279,1779199841000,-289.4491554,0.00015,2]
[422641281,1779199841000,-1887.80242846,0.00015,2]
[422641283,1779199841000,321.73240537,0.00030136,120]
[422641282,1779199841000,153.33261871,0.00030136,120]
[422641264,1779199841000,-150.0,0.00014986,2]
[422641262,1779199841000,-417.0,0.00014981,2]
[422641276,1779199841000,-378.36,0.00015,2]
[422641259,1779199841000,-355.0,0.00014948,2]
[422641225,1779199841000,-25000.0,0.00014891,3]
[422641227,1779199841000,-417.0,0.00014893,2]
[422641231,1779199841000,-25000.0,0.000149,3]
[422641235,1779199841000,-1175.14465853,0.000149,2]
[422641261,1779199841000,-417.0,0.0001495,2]
[422641233,1779199841000,-5676.58636403,0.000149,3]
[422641236,1779199841000,-329.96243249,0.000149,2]
[422641238,1779199841000,-1849.13914041,0.000149,2]
[422641246,1779199841000,-415.0,0.00014913,2]
[422641229,1779199841000,-415.0,0.00014897,2]
[422641244,1779199841000,-406.35865893,0.00014901,2]
[422641240,1779199841000,-6380.1198814,0.000149,2]
[422641256,1779199841000,-372.0,0.00014943,2]
[422641254,1779199841000,-417.0,0.00014942,2]
[422641252,1779199841000,-200.0,0.00014929,2]
[422641221,1779199841000,-25000.0,0.00014882,3]
[422641248,1779199841000,-417.0,0.00014913,2]
[422641242,1779199841000,-3292.34073632,0.000149,2]
[422641250,1779199841000,-917.65,0.00014926,2]
[422641284,1779199842000,500.0,0.00030136,120]
[422641294,1779199843000,-926.76940171,0.00015,2]
[422641293,1779199843000,-5639.45343996,0.00015,2]
[422641292,1779199843000,-565.73610727,0.00015,2]
[422641291,1779199843000,220.45116191,0.00030136,120]
[422641295,1779199843000,-628.87665091,0.00015,2]
[422641338,1779199844000,4230.51,0.00030136,120]
[422641339,1779199845000,2338.32,0.00030136,120]
[422641341,1779199846000,-3238.40276751,0.00015,2]
[422641340,1779199846000,552.4670077,0.00030136,120]
[422641361,1779199848000,925.32,0.00030136,120]
[422641362,1779199854000,151.12551152,0.00030136,120]
[422641363,1779199856000,500.0,0.00030136,120]
[422641364,1779199859000,550.60967362,0.00030136,120]
[422641365,1779199862000,209.0200705,0.00030136,120]
[422641366,1779199864000,500.0,0.00030136,120]
[422641367,1779199865000,762.22,0.00030136,120]
[422641368,1779199866000,2412.28,0.00030136,120]
[422641369,1779199874000,309.55416909,0.00030136,120]
[422641370,1779199875000,334.19251049,0.00030136,120]
[422641371,1779199877000,177.6990172,0.00030136,120]
[422641372,1779199878000,500.0,0.00030136,120]
[422641373,1779199879000,737.06,0.00030136,120]
[422641374,1779199879000,500.0,0.00030136,120]
[422641375,1779199889000,302.45201375,0.00030136,120]
[422641376,1779199892000,639.11,0.00030136,120]
[422641378,1779199893000,155.28495809,0.00030136,120]
[422641377,1779199893000,500.0,0.00030136,120]
[422641381,1779199895000,505.68,0.00030136,120]
[422641380,1779199895000,1848.82,0.00030136,120]
[422641379,1779199895000,505.71029362,0.00030136,120]
[422641382,1779199897000,395.64192809,0.00030136,120]
[422641383,1779199899000,500.0,0.00030136,120]
[422641384,1779199903000,509.77638913,0.00030136,120]
[422641385,1779199904000,151.62997513,0.00030136,120]
[422641386,1779199906000,2724.8,0.00030136,120]
[422641387,1779199907000,500.0,0.00030136,120]
[422641388,1779199910000,500.0,0.00030136,120]
[422641389,1779199911000,460.0445,0.00030136,120]
[422641390,1779199914000,2685.78,0.00030136,120]
[422641391,1779199917000,500.0,0.00030136,120]
[422641392,1779199920000,692.62,0.00030136,120]
[422641393,1779199922000,3891.34,0.00030136,120]
[422641394,1779199928000,500.0,0.00030136,120]
[422641395,1779199939000,500.0,0.00030136,120]
[422641396,1779199940000,500.0,0.00030136,120]
[422641397,1779199941000,500.0,0.00030136,120]
[422641399,1779199943000,692.55,0.00030136,120]
[422641398,1779199943000,500.0,0.00030136,120]
[422641400,1779199944000,3357.01,0.00030136,120]
[422641401,1779199950000,500.0,0.00030136,120]
[422641402,1779199967000,1798.03,0.00030136,120]
[422641403,1779199968000,2993.66,0.00030136,120]
[422641405,1779199973000,500.0,0.00030136,120]
[422641406,1779199974000,1065.58,0.00030136,120]
[422641408,1779199976000,206.46748952,0.00030136,120]
[422641407,1779199976000,500.0,0.00030136,120]
[422641409,1779199984000,500.0,0.00030136,120]
[422641411,1779199992000,2115.97,0.00030136,120]
[422641412,1779199993000,7559.57,0.00030136,120]
[422641414,1779199995000,975.84,0.00030136,120]
[422641413,1779199995000,500.0,0.00030136,120]
[422641415,1779200000000,500.0,0.00030136,120]
[422641416,1779200001000,500.0,0.00030136,120]
[422641417,1779200004000,334.5007634,0.00030136,120]
[422641418,1779200011000,2395.4,0.00030136,120]
[422641419,1779200018000,771.58,0.00030136,120]
[422641420,1779200032000,500.0,0.00030136,120]
[422641421,1779200043000,172.71727385,0.00030136,120]
[422641422,1779200051000,2369.97,0.00030136,120]
[422641423,1779200078000,989.78,0.00030136,120]
[422641424,1779200080000,4054.24,0.00030136,120]
[422641425,1779200082000,523.17,0.00030136,120]
[422641426,1779200085000,886.76,0.00030136,120]
[422641427,1779200092000,500.0,0.00030136,120]
[422641428,1779200098000,500.0,0.00030136,120]
[422641429,1779200116000,706.35,0.00030136,120]
[422641430,1779200120000,500.0,0.00030136,120]
[422641431,1779200132000,500.0,0.00030136,120]
[422641432,1779200133000,1771.79,0.00030136,120]
[422641433,1779200156000,666.85,0.00030136,120]
[422641434,1779200163000,500.0,0.00030136,120]
[422641435,1779200164000,500.0,0.00030136,120]
[422641436,1779200167000,2756.36,0.00030136,120]
[422641437,1779200179000,3217.13,0.00030136,120]
[422641438,1779200183000,1723.11,0.00030136,120]
[422641439,1779200186000,500.0,0.00030136,120]
[422641440,1779200190000,500.0,0.00030136,120]
[422641441,1779200202000,500.0,0.00030136,120]
[422641442,1779200205000,500.0,0.00030136,120]
[422641443,1779200210000,2868.93,0.00030136,120]
[422641444,1779200211000,500.0,0.00030136,120]
[422641445,1779200215000,500.0,0.00030136,120]
[422641446,1779200217000,500.0,0.00030136,120]
[422641447,1779200219000,500.0,0.00030136,120]
[422641448,1779200229000,500.0,0.00030136,120]
[422641449,1779200230000,7244.59,0.00030136,120]
[422641450,1779200235000,2027.8,0.00030136,120]
[422641451,1779200239000,1021.18,0.00030136,120]
[422641452,1779200249000,500.0,0.00030136,120]
[422641453,1779200251000,500.0,0.00030136,120]
[422641454,1779200251000,1152.3,0.00030136,120]
[422641455,1779200252000,2295.59,0.00030136,120]
[422641456,1779200268000,32800.0,0.00030136,120]
[422641457,1779200269000,593.86108303,0.00030136,120]
[422641458,1779200279000,543.74,0.00030136,120]
[422641460,1779200288000,500.0,0.00030136,120]
[422641459,1779200288000,2271.22,0.00030136,120]
[422641461,1779200293000,948.54,0.00030136,120]
[422641462,1779200325000,849.81,0.00030136,120]
[422641463,1779200334000,500.0,0.00030136,120]
[422641464,1779200337000,500.0,0.00030136,120]
[422641465,1779200341000,3885.32,0.00030136,120]
[422641467,1779200346000,164.5,7.076e-05,2]
[422641468,1779200353000,500.0,0.00030136,120]
[422641469,1779200354000,500.0,0.00030136,120]
[422641470,1779200356000,676.92,0.00030136,120]
[422641471,1779200357000,500.18,0.00030136,120]
[422641472,1779200373000,1697.96,0.00030136,120]
[422641473,1779200377000,512.46873899,0.00030136,120]
[422641475,1779200380000,3614.35,0.00030136,120]
[422641474,1779200380000,500.0,0.00030136,120]
[422641476,1779200387000,795.6,0.00030136,120]
[422641477,1779200411000,1209.85,0.00030136,120]
[422641478,1779200413000,2289.36,0.00030136,120]
[422641479,1779200420000,500.0,0.00030136,120]
[422641480,1779200422000,500.0,0.00030136,120]
[422641481,1779200425000,500.0,0.00030136,120]
[422641482,1779200429000,2749.39,0.00030136,120]
[422641483,1779200434000,500.0,0.00030136,120]
[422641484,1779200435000,730.46,0.00030136,120]
[422641485,1779200438000,2240.89,0.00030136,120]
[422641487,1779200438000,1651.31,0.00030136,120]
[422641486,1779200438000,500.0,0.00030136,120]
[422641488,1779200440000,500.0,0.00030136,120]
[422641489,1779200442000,3083.09,0.00030136,120]
[422641490,1779200443000,613.03,0.00030136,120]
[422641491,1779200444000,500.0,0.00030136,120]
[422641492,1779200451000,500.0,0.00030136,120]
[422641493,1779200453000,1943.31,0.00030136,120]
[422641494,1779200458000,978.63,0.00030136,120]
[422641495,1779200465000,500.0,0.00030136,120]
[422641496,1779200467000,500.0,0.00030136,120]
[422641497,1779200469000,500.0,0.00030136,120]
[422641499,1779200472000,2199.95,0.00030136,120]
[422641500,1779200476000,2611.27,0.00030136,120]
[422641501,1779200483000,612.48,0.00030136,120]
[422641502,1779200484000,2573.87,0.00030136,120]
[422641503,1779200491000,500.0,0.00030136,120]
[422641504,1779200495000,2716.72,0.00030136,120]
[422641505,1779200505000,500.0,0.00030136,120]
[422641506,1779200507000,500.0,0.00030136,120]
[422641508,1779200536000,500.0,0.00030136,120]
[422641509,1779200551000,814.41,0.00030136,120]
[422641510,1779200553000,2176.59,0.00030136,120]
[422641511,1779200557000,909.02,0.00030136,120]
[422641512,1779200566000,3723.43,0.00030136,120]
[422641514,1779200573000,500.0,0.00030136,120]
[422641513,1779200573000,500.0,0.00030136,120]
[422641515,1779200578000,500.0,0.00030136,120]
[422641516,1779200579000,500.0,0.00030136,120]
[422641517,1779200580000,648.71,0.00030136,120]
[422641519,1779200592000,935.18,0.00030136,120]
[422641518,1779200592000,500.0,0.00030136,120]
[422641520,1779200597000,1627.21,0.00030136,120]
[422641521,1779200616000,739.43,0.00030136,120]
[422641523,1779200620000,338.66171495,0.00030136,120]
[422641522,1779200620000,189.35831511,0.00030136,120]
[422641524,1779200631000,500.0,0.00030136,120]
[422641525,1779200644000,3463.76,0.00030136,120]
[422641526,1779200659000,500.0,0.00030136,120]
[422641527,1779200669000,500.0,0.00030136,120]
[422641528,1779200672000,2954.62,0.00030136,120]
[422641529,1779200678000,501.37,0.00030136,120]
[422641530,1779200688000,1582.51,0.00030136,120]
[422641531,1779200690000,2634.83,0.00030136,120]
[422641532,1779200692000,937.85,0.00030136,120]
[422641533,1779200695000,500.0,0.00030136,120]
[422641534,1779200697000,500.0,0.00030136,120]
[422641535,1779200702000,517.12545183,0.00030136,120]
[422641536,1779200703000,500.0,0.00030136,120]
[422641537,1779200713000,500.0,0.00030136,120]
[422641538,1779200719000,6829.53,0.00030136,120]
[422641539,1779200726000,10000.0,0.00030137,120]
[422641540,1779200731000,2108.28,0.00030136,120]
[422641541,1779200732000,500.0,0.00030136,120]
[422641542,1779200751000,10000.0,0.00030137,120]
[422641543,1779200755000,639.07,0.00030136,120]
[422641544,1779200758000,10000.0,0.00030137,120]